bitfinex/quotes_SOLUSD_20250508
["timestamp","ask_amount","ask_price","bid_price","bid_amount"]
[1746713288495,4.09954403,155.11,155.07,31.87961517]
[1746713288695,4.09954403,155.11,155.08,31.87961517]
[1746713289090,6.44745325,155.1,155.08,31.87961517]
[1746713289302,6.44745325,155.1,155.09,31.87961517]
[1746713290481,6.4462064,155.13,155.09,31.87961517]
[1746713290805,6.4462064,155.13,155.11,31.87961517]
[1746713290980,6.4462064,155.13,155.12,31.87961517]
[1746713291184,6.4462064,155.13,155.11,31.87961517]
[1746713291402,6.4462064,155.13,155.05,0.14216157]
[1746713291586,6.4462064,155.13,155.11,31.87961517]
[1746713292205,6.4462064,155.13,155.06,32.44895809]
[1746713292394,6.4462064,155.13,155.07,0.14216157]
[1746713292591,22.56172241,155.13,155.06,26.0]
[1746713292817,22.56172241,155.13,155.1,31.87961517]
[1746713293109,22.56172241,155.13,155.07,26.0]
[1746713293325,22.56172241,155.13,155.1,31.87961517]
[1746713294119,16.11551601,155.13,155.1,31.87961517]
[1746713294296,16.11551601,155.13,155.11,31.87961517]
[1746713294685,16.11551601,155.13,155.07,26.0]
[1746713294885,50.52926403,155.12,155.08,31.87961517]
[1746713295092,50.52926403,155.12,155.05,26.0]
[1746713295293,4.09296728,155.11,155.07,31.87961517]
[1746713295509,4.09296728,155.11,155.02,1.5274]
[1746713295510,18.64964886,155.1,155.02,1.5274]
[1746713295707,31.87961517,155.09,155.02,1.5274]
[1746713295986,22.57190764,155.06,154.98,1.5579]
[1746713296183,18.64964886,155.05,154.98,1.5579]
[1746713296409,31.87961517,155.03,154.94,84.4654]
[1746713296610,26.0,154.99,154.9,19.3454]
[1746713296786,26.0,154.99,154.9,1.6654]
[1746713296986,57.87961517,154.99,154.94,31.87961517]
[1746713297596,31.87961517,154.98,154.93,31.87961517]
[1746713297908,31.87961517,154.97,154.89,26.0]
[1746713298090,6.45327826,154.96,154.87,6.1358]
[1746713298296,31.87961517,154.94,154.85,19.2141]
[1746713298503,18.64964886,154.95,154.9,31.87961517]
[1746713298814,50.52926403,154.95,154.9,31.87961517]
[1746713299486,18.64964886,154.95,154.91,31.87961517]
[1746713299688,18.64964886,154.95,154.86,0.14216157]
[1746713299915,50.52926403,154.95,154.91,31.87961517]
[1746713300212,6.45411126,154.94,154.91,31.87961517]
[1746713300385,6.45411126,154.94,154.86,0.14216157]
[1746713300826,6.45411126,154.94,154.91,31.87961517]
[1746713301212,6.45411126,154.94,154.85,33.99191615]
[1746713301213,50.52926403,154.93,154.85,1.5341]
[1746713301505,31.87961517,154.91,154.83,0.33432824]
[1746713301908,6.1041,154.92,154.83,0.33432824]
[1746713302112,6.1041,154.92,154.87,31.87961517]
[1746713302312,6.45536117,154.91,154.87,31.87961517]
[1746713302518,6.45536117,154.91,154.88,31.87961517]
[1746713303010,6.45536117,154.91,154.83,6.79292684]
[1746713303011,6.45536117,154.91,154.89,31.87961517]
[1746713303213,6.45536117,154.91,154.9,31.87961517]
[1746713303413,6.45536117,154.91,154.84,0.14216157]
[1746713303590,6.45536117,154.91,154.88,31.87961517]
[1746713303992,6.45536117,154.91,154.89,31.87961517]
[1746713304398,6.45494448,154.92,154.89,31.87961517]
[1746713304591,38.33455965,154.92,154.83,6.7930001]
[1746713304792,31.87961517,154.91,154.86,31.87961517]
[1746713305011,54.47192086,154.92,154.88,31.87961517]
[1746713305504,6.45494448,154.92,154.89,31.87961517]
[1746713305705,6.45494448,154.92,154.91,31.87961517]
[1746713306818,6.45494448,154.92,154.9,31.87961517]
[1746713307413,6.45494448,154.92,154.89,31.87961517]
[1746713307625,6.45494448,154.92,154.9,31.87961517]
[1746713308807,6.45494448,154.92,154.89,31.87961517]
[1746713309402,6.45494448,154.92,154.9,31.87961517]
[1746713309731,6.45494448,154.92,154.91,31.87961517]
[1746713310825,6.45494448,154.92,154.88,31.87961517]
[1746713310996,6.45450422,154.94,154.91,31.87961517]
[1746713311195,6.45450422,154.94,154.88,31.87961517]
[1746713311414,6.45450422,154.94,154.92,31.87961517]
[1746713311613,6.45450422,154.94,154.85,26.14216157]
[1746713311823,6.45450422,154.94,154.9,31.87961517]
[1746713312123,22.58978239,154.94,154.91,31.87961517]
[1746713312321,22.58978239,154.94,154.85,32.59989993]
[1746713312503,22.58978239,154.94,154.91,31.87961517]
[1746713313200,16.13527817,154.94,154.91,31.87961517]
[1746713313401,6.45369474,154.95,154.93,31.87961517]
[1746713313628,6.45369474,154.95,154.94,31.87961517]
[1746713313812,6.45202916,154.99,154.94,31.87961517]
[1746713314000,6.45202916,154.99,154.98,31.87961517]
[1746713315201,16.12812431,155.01,154.98,31.87961517]
[1746713315401,16.12812431,155.01,155.0,31.87961517]
[1746713316932,16.12812431,155.01,154.99,31.87961517]
[1746713317225,16.12812431,155.01,154.98,31.87961517]
[1746713317428,18.64964886,155.0,154.96,31.87961517]
[1746713317727,18.64964886,155.0,154.92,26.0]
[1746713317728,155.24964886,155.0,154.97,31.87961517]
[1746713317908,136.6,155.0,154.92,26.0]
[1746713318102,136.6,155.0,154.98,31.87961517]
[1746713318300,136.6,155.0,154.97,31.87961517]
[1746713318800,136.6,155.0,154.92,26.0]
[1746713319119,136.6,155.0,154.96,31.87961517]
[1746713319422,6.45202916,154.99,154.98,31.87961517]
[1746713319835,6.45202916,154.99,154.97,31.87961517]
[1746713319836,22.58210206,154.99,154.97,31.87961517]
[1746713320329,22.58210206,154.99,154.92,26.0]
[1746713320541,22.58210206,154.99,154.97,31.87961517]
[1746713320841,22.58210206,154.99,154.92,26.0]
[1746713320842,6.45202916,154.99,154.98,31.87961517]
[1746713322211,136.6,155.0,154.98,31.87961517]
[1746713322212,143.05169053,155.0,154.98,31.87961517]
[1746713322412,6.45036444,155.03,154.99,31.87961517]
[1746713322615,6.45036444,155.03,155.02,31.87961517]
[1746713322835,6.45036444,155.03,154.97,0.14216157]
[1746713323013,6.45036444,155.03,155.02,31.87961517]
[1746713323214,6.45009789,155.04,155.02,31.87961517]
[1746713323512,6.45009789,155.04,155.03,31.87961517]
[1746713324909,6.44870058,155.07,155.03,31.87961517]
[1746713325114,6.44870058,155.07,155.06,31.87961517]
[1746713325923,26.63640235,155.07,154.97,18.79181043]
[1746713326419,26.63640235,155.07,155.05,31.87961517]
[1746713326826,4.06595031,155.06,155.05,31.87961517]
[1746713327033,4.06595031,155.06,155.04,31.87961517]
[1746713327441,22.57336342,155.05,154.96,122.80291517]
[1746713327741,22.57336342,155.05,155.01,31.87961517]
[1746713327949,159.17336342,155.05,155.01,31.87961517]
[1746713328242,159.31559917,155.04,155.0,31.87961517]
[1746713328543,159.31559917,155.04,154.99,31.87961517]
[1746713328851,24.90454886,155.02,154.98,31.87961517]
[1746713329524,22.57918843,155.01,154.99,31.87961517]
[1746713329726,22.57918843,155.01,154.95,26.0]
[1746713329727,4.06595031,155.0,154.95,26.0]
[1746713329936,4.06595031,155.0,154.97,31.87961517]
[1746713330623,4.06595031,154.99,154.97,31.87961517]
[1746713330827,4.06595031,154.99,154.95,31.87961517]
[1746713331021,4.06595031,154.99,154.96,31.87961517]
[1746713331221,4.06595031,154.99,154.97,31.87961517]
[1746713331442,4.06595031,154.99,154.98,31.87961517]
[1746713331947,10.51797947,154.99,154.98,31.87961517]
[1746713332832,10.51797947,154.99,154.92,1.5278]
[1746713333036,10.51797947,154.99,154.98,31.87961517]
[1746713335560,26.64805237,154.99,154.97,31.87961517]
[1746713335865,4.06595031,154.98,154.97,31.87961517]
[1746713336234,10.51839578,154.98,154.97,31.87961517]
[1746713336436,26.64950947,154.98,154.96,31.87961517]
[1746713336852,26.64950947,154.98,154.97,31.87961517]
[1746713337354,26.64950947,154.98,154.96,31.87961517]
[1746713338235,4.06595031,154.97,154.96,31.87961517]
[1746713338446,10.51881215,154.97,154.96,31.87961517]
[1746713341055,26.65096676,154.97,154.92,1.5278]
[1746713341241,26.65096676,154.97,154.96,31.87961517]
[1746713342251,26.65096676,154.97,154.89,43.8]
[1746713342445,26.65096676,154.97,154.93,31.87961517]
[1746713342748,4.06595031,154.96,154.93,31.87961517]
[1746713342953,4.06595031,154.96,154.94,31.87961517]
[1746713343462,140.66595031,154.96,154.89,26.0]
[1746713343671,140.66595031,154.96,154.93,31.87961517]
[1746713343963,4.06595031,154.95,154.92,31.87961517]
[1746713344350,4.06595031,154.95,154.93,31.87961517]
[1746713344549,22.58938943,154.94,154.88,33.41521517]
[1746713345062,4.06595031,154.93,154.92,31.87961517]
[1746713345436,4.06595031,154.93,154.84,19.2902]
[1746713345637,4.06595031,154.93,154.9,31.87961517]
[1746713345832,4.06595031,154.93,154.84,19.2902]
[1746713345833,155.24964886,154.92,154.89,31.87961517]
[1746713346062,155.24964886,154.92,154.84,45.2902]
[1746713346268,155.24964886,154.92,154.89,31.87961517]
[1746713346445,4.06595031,154.91,154.89,31.87961517]
[1746713346653,6.45577792,154.9,154.89,31.87961517]
[1746713347347,6.45577792,154.9,154.84,27.6302]
[1746713347540,10.52172823,154.9,154.89,31.87961517]
[1746713347855,26.66117303,154.9,154.89,31.87961517]
[1746713349161,26.66117303,154.9,154.88,31.87961517]
[1746713349460,26.66117303,154.9,154.85,31.87961517]
[1746713349461,18.64964886,154.89,154.85,31.87961517]
[1746713349659,18.64964886,154.87,154.8,33.50291517]
[1746713349969,18.64964886,154.87,154.83,31.87961517]
[1746713350459,50.52926403,154.87,154.76,1.5012]
[1746713350662,50.52926403,154.85,154.76,1.5012]
[1746713350847,22.60397829,154.84,154.76,1.5012]
[1746713351044,22.60397829,154.84,154.8,31.87961517]
[1746713351447,22.60397829,154.84,154.81,31.87961517]
[1746713351767,4.06595031,154.83,154.82,31.87961517]
[1746713351955,4.06595031,154.83,154.76,1.5012]
[1746713352163,4.06595031,154.83,154.81,31.87961517]
[1746713353071,6.4591138,154.82,154.81,31.87961517]
[1746713353360,6.4591138,154.82,154.76,1.5012]
[1746713353761,6.4591138,154.82,154.81,31.87961517]
[1746713355260,16.14569878,154.84,154.81,31.87961517]
[1746713355567,16.14569878,154.84,154.83,31.87961517]
[1746713356144,20.23708823,154.84,154.83,31.87961517]
[1746713357061,26.69536774,154.84,154.83,31.87961517]
[1746713357368,22.60397829,154.84,154.83,31.87961517]
[1746713357841,22.60397829,154.84,154.76,1.5012]
[1746713358042,22.60397829,154.84,154.83,31.87961517]
[1746713358238,155.24964886,154.83,154.76,1.5012]
[1746713358479,18.79181043,154.81,154.72,33.49321517]
[1746713358645,18.79181043,154.81,154.77,31.87961517]
[1746713358845,18.64964886,154.79,154.77,31.87961517]
[1746713359142,159.21274065,154.78,154.68,1.5553]
[1746713359347,18.64964886,154.77,154.68,1.5553]
[1746713359560,18.64964886,154.77,154.73,31.87961517]
[1746713360159,18.64964886,154.77,154.68,1.5553]
[1746713360160,136.6,154.76,154.68,1.5553]
[1746713360373,136.6,154.76,154.74,31.87961517]
[1746713360752,136.6,154.76,154.68,1.5553]
[1746713360945,136.6,154.76,154.74,31.87961517]
[1746713361347,6.46203554,154.75,154.74,31.87961517]
[1746713362661,143.06176722,154.76,154.74,31.87961517]
[1746713362880,143.06176722,154.76,154.75,31.87961517]
[1746713365576,6.46176722,154.76,154.75,31.87961517]
[1746713366880,6.46176722,154.76,154.69,26.0]
[1746713367181,6.46176722,154.76,154.75,31.87961517]
[1746713367660,16.15195761,154.78,154.69,26.0]
[1746713367858,155.24964886,154.77,154.68,1.5553]
[1746713368084,155.24964886,154.77,154.73,31.87961517]
[1746713368779,136.6,154.76,154.73,31.87961517]
[1746713368975,136.6,154.76,154.68,1.5553]
[1746713369176,136.6,154.76,154.73,31.87961517]
[1746713369379,136.6,154.76,154.68,27.5553]
[1746713369563,136.6,154.76,154.73,31.87961517]
[1746713369766,6.46203554,154.75,154.68,1.5553]
[1746713369986,6.46203554,154.75,154.72,31.87961517]
[1746713370196,22.61712439,154.75,154.72,31.87961517]
[1746713370382,22.61712439,154.75,154.73,31.87961517]
[1746713370686,41.26677325,154.75,154.74,31.87961517]
[1746713371065,41.26677325,154.75,154.68,1.5553]
[1746713371265,41.26677325,154.75,154.74,31.87961517]
[1746713371675,6.46203554,154.75,154.74,31.87961517]
[1746713371871,22.61079304,154.8,154.74,31.87961517]
[1746713372078,22.61079304,154.8,154.79,31.87961517]
[1746713372871,26.67358627,154.8,154.79,31.87961517]
[1746713373599,45.32323513,154.8,154.78,31.87961517]
[1746713373805,22.61274065,154.78,154.72,31.87961517]
[1746713374095,22.61274065,154.78,154.77,31.87961517]
[1746713374467,22.61274065,154.78,154.72,31.87961517]
[1746713374695,22.61274065,154.78,154.77,31.87961517]
[1746713378900,22.60936455,154.81,154.77,31.87961517]
[1746713379102,22.60936455,154.81,154.75,1.6167]
[1746713379103,22.60936455,154.81,154.8,31.87961517]
[1746713381123,26.67083335,154.81,154.8,31.87961517]
[1746713381631,22.60936455,154.81,154.8,31.87961517]
[1746713381796,6.45953103,154.81,154.8,63.75923034]
[1746713383205,6.45827951,154.84,154.8,63.75923034]
[1746713383407,6.45827951,154.84,154.83,31.87961517]
[1746713383726,26.67063121,154.84,154.83,31.87961517]
[1746713386099,26.67063121,154.84,154.78,6.1541]
[1746713386299,22.60397829,154.84,154.83,31.87961517]
[1746713387224,26.67876116,154.84,154.83,31.87961517]
[1746713388127,10.53306238,154.84,154.83,31.87961517]
[1746713389430,10.53306238,154.84,154.8,31.87961517]
[1746713389729,10.53306238,154.84,154.83,31.87961517]
[1746713393032,4.07478287,154.84,154.83,31.87961517]
[1746713393419,6.45786244,154.85,154.83,31.87961517]
[1746713393720,16.14384369,154.86,154.84,31.87961517]
[1746713393919,16.14384369,154.86,154.85,31.87961517]
[1746713394123,20.22585042,154.86,154.85,31.87961517]
[1746713395337,4.08200673,154.86,154.85,31.87961517]
[1746713395712,136.6,154.92,154.86,63.75923034]
[1746713396034,32.2711404,154.94,154.91,31.87961517]
[1746713396205,32.2711404,154.94,154.93,31.87961517]
[1746713396402,136.6,154.96,154.93,31.87961517]
[1746713396624,143.05327826,154.96,154.95,31.87961517]
[1746713399214,159.18647392,154.96,154.89,1.6173]
[1746713399417,191.45286524,154.96,154.95,31.87961517]
[1746713399626,210.1025141,154.96,154.94,31.87961517]
[1746713400718,18.64964886,154.95,154.88,31.87961517]
[1746713400918,0.14216157,154.94,154.91,31.87961517]
[1746713401122,155.24964886,154.95,154.93,31.87961517]
[1746713402005,22.58938943,154.94,154.92,31.87961517]
[1746713402315,18.64964886,154.93,154.92,31.87961517]
[1746713402521,18.64964886,154.93,154.9,31.87961517]
[1746713402716,54.85994577,154.94,154.92,31.87961517]
[1746713402917,73.50959463,154.94,154.93,31.87961517]
[1746713403333,73.50959463,154.94,154.88,31.87961517]
[1746713403531,73.50959463,154.94,154.92,31.87961517]
[1746713404235,18.64964886,154.93,154.91,31.87961517]
[1746713404428,18.64964886,154.93,154.85,27.5767]
[1746713404623,18.64964886,154.93,154.92,31.87961517]
[1746713405140,54.85994577,154.94,154.92,31.87961517]
[1746713405337,73.50959463,154.94,154.93,31.87961517]
[1746713405547,22.58938943,154.94,154.93,31.87961517]
[1746713406338,6.45411126,154.94,154.93,31.87961517]
[1746713406523,6.45327826,154.96,154.93,31.87961517]
[1746713406715,6.45327826,154.96,154.95,31.87961517]
[1746713407036,22.58647392,154.96,154.95,31.87961517]
[1746713407218,22.58647392,154.96,154.88,59.47301517]
[1746713407419,22.58647392,154.96,154.94,31.87961517]
[1746713408045,16.13319566,154.96,154.95,31.87961517]
[1746713410941,6.45286184,154.97,154.95,31.87961517]
[1746713411242,6.45286184,154.97,154.96,63.75923034]
[1746713412526,172.56964886,155.04,154.96,63.75923034]
[1746713412527,22.5777319,155.02,154.96,63.75923034]
[1746713412854,22.5777319,155.02,154.96,31.87961517]
[1746713413061,22.5777319,155.02,155.0,31.87961517]
[1746713413222,54.83163462,155.02,154.99,31.87961517]
[1746713413730,18.64964886,155.01,154.99,31.87961517]
[1746713414733,45.23684579,155.0,154.96,31.87961517]
[1746713414937,45.23684579,155.0,154.99,31.87961517]
[1746713416645,45.23684579,155.0,154.8,64.83908175]
[1746713416646,155.24964886,154.99,154.91,26.0]
[1746713416817,155.24964886,154.99,154.97,31.87961517]
[1746713417433,155.24964886,154.99,154.98,31.87961517]
[1746713418049,143.05202916,154.99,154.98,31.87961517]
[1746713418350,147.05858094,154.99,154.98,31.87961517]
[1746713418841,147.05858094,154.99,154.97,31.87961517]
[1746713419347,163.18865384,154.99,154.88,40.17987674]
[1746713419532,163.18865384,154.99,154.95,31.87961517]
[1746713419926,6.45286184,154.97,154.95,31.87961517]
[1746713420120,22.58501645,154.97,154.95,31.87961517]
[1746713420327,22.58501645,154.97,154.91,26.0]
[1746713420549,22.58501645,154.97,154.94,31.87961517]
[1746713421564,54.46463162,154.97,154.88,40.03771517]
[1746713421737,31.87961517,154.95,154.88,1.5934]
[1746713421928,4.01224482,154.94,154.91,31.87961517]
[1746713422122,6.45452785,154.93,154.88,33.47301517]
[1746713422431,6.45452785,154.93,154.92,31.87961517]
[1746713422840,22.59084747,154.93,154.91,31.87961517]
[1746713423658,22.59084747,154.93,154.89,31.87961517]
[1746713424027,35.89762883,154.92,154.86,26.0]
[1746713424249,35.89762883,154.92,154.88,31.87961517]
[1746713424833,35.89762883,154.92,154.86,26.0]
[1746713425030,35.89762883,154.91,154.87,31.87961517]
[1746713425247,4.01801366,154.91,154.86,26.0]
[1746713425449,4.01801366,154.91,154.87,31.87961517]
[1746713425656,35.89762883,154.91,154.87,31.87961517]
[1746713426048,22.59522272,154.9,154.87,31.87961517]
[1746713426352,4.01801366,154.89,154.87,31.87961517]
[1746713426527,4.01801366,154.89,154.88,31.87961517]
[1746713427029,4.01801366,154.89,154.88,63.75923034]
[1746713427245,6.45543194,154.91,154.88,63.75923034]
[1746713427443,136.6,154.97,154.9,31.87961517]
[1746713427754,6.45327826,154.96,154.91,27.5709]
[1746713428154,6.4516129,155.0,154.91,34.02625301]
[1746713428355,22.58064515,155.0,154.93,26.0]
[1746713428659,4.02998963,154.99,154.93,26.0]
[1746713428860,4.02998963,154.99,154.97,31.87961517]
[1746713429263,4.02998963,154.99,154.98,31.87961517]
[1746713429647,4.02998963,154.99,154.97,31.87961517]
[1746713429854,4.02998963,154.99,154.93,26.0]
[1746713430051,6.45244547,154.98,154.97,31.87961517]
[1746713430934,10.4824351,154.98,154.97,31.87961517]
[1746713434571,4.02998963,154.98,154.97,31.87961517]
[1746713434945,10.4824351,154.98,154.97,31.87961517]
[1746713435162,6.45244547,154.98,154.97,31.87961517]
[1746713435357,16.12695136,155.02,154.97,31.87961517]
[1746713435666,16.12695136,155.02,155.01,31.87961517]
[1746713436013,6.4499484,155.04,155.01,31.87961517]
[1746713436140,6.45119669,155.01,154.97,6.3826]
[1746713436449,6.45119669,155.01,155.0,31.87961517]
[1746713437062,6.45119669,155.01,154.97,6.3826]
[1746713437265,6.45119669,155.01,155.0,31.87961517]
[1746713438167,16.124871,155.04,155.0,31.87961517]
[1746713438343,16.124871,155.04,155.01,31.87961517]
[1746713438867,16.124871,155.04,155.03,31.87961517]
[1746713439381,20.16772635,155.04,155.03,31.87961517]
[1746713440086,10.49280375,155.04,155.03,31.87961517]
[1746713440448,6.4499484,155.04,155.03,31.87961517]
[1746713440649,16.12252564,155.07,155.03,31.87961517]
[1746713440843,22.57122622,155.07,155.06,31.87961517]
[1746713441148,26.61014897,155.07,155.06,31.87961517]
[1746713441349,26.61014897,155.07,155.0,27.5646]
[1746713441556,26.61014897,155.07,155.05,31.87961517]
[1746713441756,26.61014897,155.07,155.04,31.87961517]
[1746713441966,26.61014897,155.07,155.05,31.87961517]
[1746713442267,10.48803922,155.06,155.05,31.87961517]
[1746713444776,10.48803922,155.06,155.0,27.70676157]
[1746713444962,6.44786897,155.09,155.05,31.87961517]
[1746713445158,6.44786897,155.09,155.04,57.87961517]
[1746713445159,6.44786897,155.09,155.08,31.87961517]
[1746713445469,54.78591756,155.15,155.08,31.87961517]
[1746713445673,54.78591756,155.15,155.04,64.00471517]
[1746713445674,86.66553273,155.15,155.11,31.87961517]
[1746713445872,50.52926403,155.14,155.04,64.00471517]
[1746713446172,50.52926403,155.12,155.04,26.0]
[1746713446362,18.64964886,155.1,155.06,31.87961517]
[1746713446560,18.64964886,155.1,155.01,6.1792]
[1746713446561,62.64138863,155.09,155.0,1.5646]
[1746713446875,31.87961517,155.08,155.03,31.87961517]
[1746713447070,31.87961517,155.07,155.0,1.5646]
[1746713447279,31.87961517,155.06,155.02,31.87961517]
[1746713447490,22.57336342,155.05,155.01,31.87961517]
[1746713447977,4.0310246,155.04,155.02,31.87961517]
[1746713449073,22.57336342,155.05,155.02,31.87961517]
[1746713450997,22.57336342,155.05,155.01,31.87961517]
[1746713451278,4.03443005,155.04,154.97,32.5403]
[1746713451456,4.03443005,155.04,155.01,31.87961517]
[1746713451655,4.03443005,155.04,155.02,31.87961517]
[1746713451974,10.48479449,155.03,155.02,31.87961517]
[1746713452482,26.6107056,155.03,154.97,32.5403]
[1746713452680,58.86252782,155.03,155.0,31.87961517]
[1746713452984,4.03443005,155.02,154.99,31.87961517]
[1746713453185,4.03443005,155.02,154.98,31.87961517]
[1746713453476,35.91404522,155.02,154.98,31.87961517]
[1746713453850,35.91404522,155.02,154.96,31.87961517]
[1746713453851,54.83870966,155.0,154.96,31.87961517]
[1746713454179,86.71832483,155.0,154.96,31.87961517]
[1746713454385,54.83870966,155.0,154.96,31.87961517]
[1746713454682,4.03443005,154.99,154.96,31.87961517]
[1746713455177,4.03443005,154.98,154.96,31.87961517]
[1746713455681,4.03443005,154.98,154.97,31.87961517]
[1746713456178,10.48687552,154.98,154.97,31.87961517]
[1746713457854,6.45244547,154.98,154.97,31.87961517]
[1746713458280,22.58064515,155.0,154.97,31.87961517]
[1746713458452,22.58064515,155.0,154.99,31.87961517]
[1746713458973,26.60885848,155.0,154.99,31.87961517]
[1746713460871,26.60885848,155.0,154.98,31.87961517]
[1746713461290,26.60885848,155.0,154.92,27.6447]
[1746713461473,26.60885848,155.0,154.97,31.87961517]
[1746713461792,4.02821333,154.99,154.97,31.87961517]
[1746713462163,4.02821333,154.99,154.92,27.6447]
[1746713462388,22.58355916,154.98,154.92,27.6447]
[1746713462595,22.58355916,154.98,154.95,31.87961517]
[1746713462777,22.58355916,154.98,154.96,31.87961517]
[1746713463375,22.58355916,154.98,154.97,31.87961517]
[1746713463982,26.59932347,154.98,154.96,31.87961517]
[1746713464186,26.59932347,154.98,154.89,82.8]
[1746713464187,58.86155085,154.98,154.89,108.8]
[1746713464500,227.34116602,154.98,154.93,31.87961517]
[1746713464704,35.89537948,154.97,154.92,31.87961517]
[1746713465068,168.47961517,154.96,154.91,31.87961517]
[1746713465398,136.6,154.96,154.92,31.87961517]
[1746713465609,4.01576431,154.95,154.93,31.87961517]
[1746713465785,4.01576431,154.95,154.94,31.87961517]
[1746713466680,6.45369474,154.95,154.94,31.87961517]
[1746713467866,143.0534267,154.96,154.94,31.87961517]
[1746713468069,143.0534267,154.96,154.95,31.87961517]
[1746713469895,136.6,154.96,154.95,31.87961517]
[1746713470304,143.05327826,154.96,154.95,31.87961517]
[1746713470795,6.45327826,154.96,154.95,31.87961517]
[1746713471502,6.45202916,154.99,154.95,31.87961517]
[1746713471704,6.45202916,154.99,154.98,31.87961517]
[1746713472472,4.03534045,154.99,154.98,31.87961517]
[1746713473701,4.03534045,154.99,154.98,32.02177674]
[1746713473874,6.4506284,155.03,154.98,32.02177674]
[1746713474074,6.4506284,155.03,155.02,31.87961517]
[1746713474297,22.57653951,155.03,155.01,31.87961517]
[1746713474620,26.60888038,155.03,155.0,31.87961517]
[1746713476800,22.58064515,155.0,154.99,31.87961517]
[1746713477614,26.61298602,155.0,154.98,31.87961517]
[1746713477978,26.61298602,155.0,154.94,1.5584]
[1746713478181,26.61298602,155.0,154.97,31.87961517]
[1746713478384,4.03234087,154.99,154.92,18.64964886]
[1746713478690,10.48437003,154.99,154.98,31.87961517]
[1746713479718,4.03234087,154.99,154.98,31.87961517]
[1746713480281,6.45169545,155.0,154.98,31.87961517]
[1746713480487,6.45169545,155.0,154.99,31.87961517]
[1746713480795,22.57627555,155.03,154.99,31.87961517]
[1746713481034,22.57627555,155.03,155.01,31.87961517]
[1746713481382,6.45036444,155.03,155.02,31.87961517]
[1746713481784,10.46870367,155.03,155.02,31.87961517]
[1746713482619,10.46870367,155.03,154.96,33.46891517]
[1746713482913,26.59461478,155.03,155.0,31.87961517]
[1746713483292,26.59461478,155.03,154.99,31.87961517]
[1746713483486,58.47422995,155.03,154.94,108.8]
[1746713483805,4.01833923,155.02,154.98,31.87961517]
[1746713483990,4.01833923,155.02,155.0,31.87961517]
[1746713484190,4.01833923,155.02,154.99,31.87961517]
[1746713484722,6.45119669,155.01,155.0,31.87961517]
[1746713484934,10.46953592,155.01,155.0,31.87961517]
[1746713485120,4.01833923,155.01,155.0,31.87961517]
[1746713485433,136.6,155.03,155.0,31.87961517]
[1746713485605,143.05036444,155.03,155.02,31.87961517]
[1746713485814,6.45036444,155.03,155.02,31.87961517]
[1746713486328,10.46623796,155.03,154.96,140.67961517]
[1746713486520,10.46623796,155.03,155.02,31.87961517]
[1746713486718,10.46623796,155.03,154.96,57.87961517]
[1746713487027,26.59214907,155.03,155.01,31.87961517]
[1746713487230,22.57627555,155.03,155.01,31.87961517]
[1746713487532,22.57627555,155.03,155.0,31.87961517]
[1746713489137,48.00552628,155.03,154.99,31.87961517]
[1746713489307,31.87961517,155.02,154.94,108.8]
[1746713489510,35.89630076,155.02,154.97,31.87961517]
[1746713490309,4.01668559,155.01,154.99,31.87961517]
[1746713490632,4.01668559,155.01,154.94,26.0]
[1746713491104,4.01668559,155.0,154.97,31.87961517]
[1746713491429,6.45202916,154.99,154.97,31.87961517]
[1746713491925,6.45202916,154.99,154.96,31.87961517]
[1746713492110,4.01668559,154.98,154.97,31.87961517]
[1746713493302,10.46913106,154.98,154.97,31.87961517]
[1746713496230,10.46913106,154.98,154.94,26.0]
[1746713496407,10.46913106,154.98,154.96,31.87961517]
[1746713497025,4.01668559,154.97,154.96,31.87961517]
[1746713497225,4.01668559,154.97,154.92,1.6514]
[1746713497412,4.01668559,154.97,154.94,31.87961517]
[1746713497732,6.45327826,154.96,154.94,31.87961517]
[1746713498233,4.01668559,154.95,154.92,1.6514]
[1746713498412,4.01668559,154.95,154.94,31.87961517]
[1746713499002,4.01668559,154.95,154.9,17.28]
[1746713499219,4.01668559,154.94,154.88,122.86001517]
[1746713499413,4.01668559,154.94,154.92,31.87961517]
[1746713499731,6.45452785,154.93,154.91,31.87961517]
[1746713500115,4.01668559,154.92,154.91,31.87961517]
[1746713500315,4.01668559,154.92,154.84,6.78326157]
[1746713500316,4.01668559,154.92,154.84,8.2641]
[1746713500510,31.87961517,154.91,154.84,1.623]
[1746713500713,31.87961517,154.91,154.86,31.87961517]
[1746713501014,31.87961517,154.89,154.82,82.8]
[1746713501214,31.87961517,154.88,154.82,82.8]
[1746713501419,31.87961517,154.87,154.78,82.8]
[1746713501724,31.87961517,154.87,154.77,6.46110273]
[1746713501725,6.45744543,154.86,154.84,31.87961517]
[1746713501914,10.47413102,154.86,154.84,31.87961517]
[1746713502443,4.01668559,154.86,154.84,31.87961517]
[1746713503336,4.01668559,154.85,154.84,31.87961517]
[1746713503520,4.01668559,154.85,154.8,31.87961517]
[1746713503714,4.01668559,154.85,154.84,31.87961517]
[1746713505816,6.45661157,154.88,154.85,31.87961517]